Workbook

Sheet 1_使い方
A3: 本コーナーでは、荷主としての取り組みの基本となる物流規模をおおよそ把握するために 簡易的にトンキロを算定することができます。 ※ここで求めたトンキロは公式な算定結果ではありません。結果に応じてより正確なトンキロ算定を行い、 特定荷主としての届出を行うかなどの判断をしてください。 ※本コーナーの距離データは国土交通省 NITAS Ver.1.5を利用して作成しております
A13: 都道府県内輸送と都道府県外輸送に分けて算定します。 ●使い方 １．はじめに「コンテンツの有効化」（黄色のバナー）をクリックしてください。（マクロを有効にしてください。） ２．まず、シート「2_簡易トンキロ算定コーナー」に移動してください。 ３．次に、都道府県内輸送で都道府県を選択し、平均輸送距離、重量、回数（赤枠部分）を入力してください。なお、年間合計重量を入れる場合には、回数は１としてください。 ４．必要に応じて追加ボタンを押し、都道府県毎に入力を繰り返してください。 ５．次に都道府県外輸送で、出発地と到着地、輸送モード（赤枠部分）を選択して、重量と回数（赤枠部分）を入力してください。なお、年間合計重量を入れる場合には、回数は１としてください。 ６．必要に応じて追加ボタンを押し、発着地の組み合わせ毎に入力を繰り返してください。 ７．全て入力したらシート「3_結果表示」に移動し、判定ボタンを押してください。トンキロの合計値とメッセージが表示されます。 ●注意事項 ・数値は整数値(半角)で入力してください。 ・「2_簡易トンキロ算定コーナー」の追加ボタンは、連打すると計算が完了する前に次の計算を行う可能性があるため、お控えください。 ・行の削除の際にはIDを指定し（赤枠部分）「削除」ボタンを、全体のクリアの際には「クリア」ボタンを押してください。 ・都道府県外輸送で、輸送モードによって選べない発着地点の組み合わせがあります。この場合には、 ※ 出発地と到着地の組み合わせが見つからない場合 をご利用下さい。

Sheet 2_簡易トンキロ算定コーナー
A3: 本コーナーでは、荷主としての取り組みの基本となる物流規模をおおよそ把握するために 簡易的にトンキロを算定することができます。 ※ここで求めたトンキロは公式な算定結果ではありません。結果に応じてより正確なトンキロ算定を行い、 特定荷主としての届出を行うかなどの判断をしてください。 ※本コーナーの距離データは国土交通省 NITAS Ver.1.5を利用して作成しております
A13: ● 都道府県内輸送
C14: 都道府県 | E14: 平均輸送距離 （km) | G14: 重量 （t） | I14: 回数 （回／年間） | K14: トンキロ
A17: ● 都道府県外輸送
A18: モード | C18: 出発地 | E18: 到着地 | G18: 重量 （t） | I18: 回数 （回／年間） | K18: トンキロ
A21: ● 都道府県外輸送※ 出発地と到着地の組み合わせが見つからない場合
A22: 出発地 | C22: 到着地 | E22: 平均輸送距離 （km) | G22: 重量 （t） | I22: 回数 （回／年間） | K22: トンキロ

Sheet 3_結果表示
E1: １～1000 | F1: 半角数字で記載してください。 | M1: 1001～2000 | N1: 半角数字で記載してください。
D2: ID | F2: を | G2: カウント番号 | L2: ID | N2: を | O2: カウント番号
A3: 合計トンキロ | B3: 2514.966 | C3: 万トンキロ
E4: ● 都道府県内輸送（登録結果） | M4: ● 都道府県外輸送（登録結果）
D5: ID | E5: 都道府県 | F5: 平均輸送距離 （km） | G5: 重量 （t） | H5: 回数 （回／年間） | I5: 総重量 （ｔ） | J5: トンキロ | L5: ID | M5: 出発地 | N5: 到着地 | O5: 平均輸送距離 （km） | P5: 重量 （t） | Q5: 回数 （回／年間） | R5: 総重量 （ｔ） | S5: トンキロ
D6: 1 | L6: =1001 -> 1001
D7: =D6+1 -> 2 | L7: =L6+1 -> 1002
D8: =D7+1 -> 3 | L8: =L7+1 -> 1003
D9: 4 | L9: 1004
D10: 5 | L10: 1005
D11: 6 | L11: 1006
D12: 7 | L12: 1007
D13: 8 | L13: 1008
D14: 9 | L14: 1009
D15: 10 | L15: 1010
D16: 11 | L16: 1011
D17: 12 | L17: 1012
D18: 13 | L18: 1013
D19: 14 | L19: 1014
D20: 15 | L20: 1015
D21: 16 | L21: 1016
D22: 17 | L22: 1017
D23: 18 | L23: 1018
D24: 19 | L24: 1019
D25: 20 | L25: 1020
D26: 21 | L26: 1021
D27: 22 | L27: 1022
D28: 23 | L28: 1023
D29: 24 | L29: 1024
D30: 25 | L30: 1025
D31: 26 | L31: 1026
D32: 27 | L32: 1027
D33: 28 | L33: 1028
D34: 29 | L34: 1029
D35: 30 | L35: 1030
D36: 31 | L36: 1031
D37: 32 | L37: 1032
D38: 33 | L38: 1033
D39: 34 | L39: 1034
D40: 35 | L40: 1035
D41: 36 | L41: 1036
D42: 37 | L42: 1037
D43: 38 | L43: 1038
D44: 39 | L44: 1039
D45: 40 | L45: 1040
D46: 41 | L46: 1041
D47: 42 | L47: 1042
D48: 43 | L48: 1043
D49: 44 | L49: 1044
D50: 45 | L50: 1045
D51: 46 | L51: 1046
D52: 47 | L52: 1047
D53: 48 | L53: 1048
D54: 49 | L54: 1049
D55: 50 | L55: 1050
D56: 51 | L56: 1051
D57: 52 | L57: 1052
D58: 53 | L58: 1053
D59: 54 | L59: 1054
D60: 55 | L60: 1055
D61: 56 | L61: 1056
D62: 57 | L62: 1057
D63: 58 | L63: 1058
D64: 59 | L64: 1059
D65: 60 | L65: 1060
D66: 61 | L66: 1061
D67: 62 | L67: 1062
D68: 63 | L68: 1063
D69: 64 | L69: 1064
D70: 65 | L70: 1065
D71: 66 | L71: 1066
D72: =D71+1 -> 67 | L72: =L71+1 -> 1067
D73: 68 | L73: 1068
D74: 69 | L74: 1069
D75: 70 | L75: 1070
D76: 71 | L76: 1071
D77: 72 | L77: 1072
D78: 73 | L78: 1073
D79: 74 | L79: 1074
D80: 75 | L80: 1075
D81: 76 | L81: 1076
D82: 77 | L82: 1077
D83: 78 | L83: 1078
D84: 79 | L84: 1079
D85: 80 | L85: 1080
D86: 81 | L86: 1081
D87: 82 | L87: 1082
D88: 83 | L88: 1083
D89: 84 | L89: 1084
D90: 85 | L90: 1085
D91: 86 | L91: 1086
D92: 87 | L92: 1087
D93: 88 | L93: 1088
D94: 89 | L94: 1089
D95: 90 | L95: 1090
D96: 91 | L96: 1091
D97: 92 | L97: 1092
D98: 93 | L98: 1093
D99: 94 | L99: 1094
D100: 95 | L100: 1095
D101: 96 | L101: 1096
D102: 97 | L102: 1097
D103: 98 | L103: 1098
D104: 99 | L104: 1099
D105: 100 | L105: 1100
D106: 101 | L106: 1101
D107: 102 | L107: 1102
D108: 103 | L108: 1103
D109: 104 | L109: 1104
D110: 105 | L110: 1105
D111: 106 | L111: 1106
D112: 107 | L112: 1107
D113: 108 | L113: 1108
D114: 109 | L114: 1109
D115: 110 | L115: 1110
D116: 111 | L116: 1111
D117: 112 | L117: 1112
D118: 113 | L118: 1113
D119: 114 | L119: 1114
D120: 115 | L120: 1115
D121: 116 | L121: 1116
D122: 117 | L122: 1117
D123: 118 | L123: 1118
D124: 119 | L124: 1119
D125: 120 | L125: 1120
D126: 121 | L126: 1121
D127: 122 | L127: 1122
D128: 123 | L128: 1123
D129: 124 | L129: 1124
D130: 125 | L130: 1125
D131: 126 | L131: 1126
D132: 127 | L132: 1127
D133: 128 | L133: 1128
D134: 129 | L134: 1129
D135: 130 | L135: 1130
D136: =D135+1 -> 131 | L136: =L135+1 -> 1131
D137: 132 | L137: 1132
D138: 133 | L138: 1133
D139: 134 | L139: 1134
D140: 135 | L140: 1135
D141: 136 | L141: 1136
D142: 137 | L142: 1137
D143: 138 | L143: 1138
D144: 139 | L144: 1139
D145: 140 | L145: 1140
D146: 141 | L146: 1141
D147: 142 | L147: 1142
D148: 143 | L148: 1143
D149: 144 | L149: 1144
D150: 145 | L150: 1145
D151: 146 | L151: 1146
D152: 147 | L152: 1147
D153: 148 | L153: 1148
D154: 149 | L154: 1149
D155: 150 | L155: 1150
D156: 151 | L156: 1151
D157: 152 | L157: 1152
D158: 153 | L158: 1153
D159: 154 | L159: 1154
D160: 155 | L160: 1155
D161: 156 | L161: 1156
D162: 157 | L162: 1157
D163: 158 | L163: 1158
D164: 159 | L164: 1159
D165: 160 | L165: 1160
D166: 161 | L166: 1161
D167: 162 | L167: 1162
D168: 163 | L168: 1163
D169: 164 | L169: 1164
D170: 165 | L170: 1165
D171: 166 | L171: 1166
D172: 167 | L172: 1167
D173: 168 | L173: 1168
D174: 169 | L174: 1169
D175: 170 | L175: 1170
D176: 171 | L176: 1171
D177: 172 | L177: 1172
D178: 173 | L178: 1173
D179: 174 | L179: 1174
D180: 175 | L180: 1175
D181: 176 | L181: 1176
D182: 177 | L182: 1177
D183: 178 | L183: 1178
D184: 179 | L184: 1179
D185: 180 | L185: 1180
D186: 181 | L186: 1181
D187: 182 | L187: 1182
D188: 183 | L188: 1183
D189: 184 | L189: 1184
D190: 185 | L190: 1185
D191: 186 | L191: 1186
D192: 187 | L192: 1187
D193: 188 | L193: 1188
D194: 189 | L194: 1189
D195: 190 | L195: 1190
D196: 191 | L196: 1191
D197: 192 | L197: 1192
D198: 193 | L198: 1193
D199: 194 | L199: 1194
D200: =D199+1 -> 195 | L200: =L199+1 -> 1195
... 805 more rows

Sheet SHISAN_BASE_DATA
I1: 貨物自動車 | L1: 185021
I2: 貨物自動車 | J2: 青森県 | K2: 岩手県 | L2: 185021
I3: 貨物自動車 | J3: 青森県 | K3: 宮城県 | L3: 364557
I4: 貨物自動車 | J4: 青森県 | K4: 秋田県 | L4: 188751
I5: 貨物自動車 | J5: 青森県 | K5: 山形県 | L5: 413353
I6: 貨物自動車 | J6: 青森県 | K6: 福島県 | L6: 439997
I7: 貨物自動車 | J7: 青森県 | K7: 茨城県 | L7: 642496
I8: 貨物自動車 | J8: 青森県 | K8: 栃木県 | L8: 598520
I9: 貨物自動車 | J9: 青森県 | K9: 群馬県 | L9: 694823
I10: 貨物自動車 | J10: 青森県 | K10: 埼玉県 | L10: 694799
I11: 貨物自動車 | J11: 青森県 | K11: 千葉県 | L11: 758490
I12: 貨物自動車 | J12: 青森県 | K12: 東京都 | L12: 721081
I13: 貨物自動車 | J13: 青森県 | K13: 神奈川県 | L13: 759368
I14: 貨物自動車 | J14: 青森県 | K14: 新潟県 | L14: 615214
I15: 貨物自動車 | J15: 青森県 | K15: 富山県 | L15: 858088
I16: 貨物自動車 | J16: 青森県 | K16: 石川県 | L16: 914583
I17: 貨物自動車 | J17: 青森県 | K17: 福井県 | L17: 996765
I18: 貨物自動車 | J18: 青森県 | K18: 山梨県 | L18: 852027
I19: 貨物自動車 | J19: 青森県 | K19: 長野県 | L19: 798362
I20: 貨物自動車 | J20: 青森県 | K20: 岐阜県 | L20: 1134469
I21: 貨物自動車 | J21: 青森県 | K21: 静岡県 | L21: 900242
I22: 貨物自動車 | J22: 青森県 | K22: 愛知県 | L22: 1082665
I23: 貨物自動車 | J23: 青森県 | K23: 三重県 | L23: 1196087
I24: 貨物自動車 | J24: 青森県 | K24: 滋賀県 | L24: 1159308
I25: 貨物自動車 | J25: 青森県 | K25: 京都府 | L25: 1179596
I26: 貨物自動車 | J26: 青森県 | K26: 大阪府 | L26: 1219843
I27: 貨物自動車 | J27: 青森県 | K27: 兵庫県 | L27: 1235548
I28: 貨物自動車 | J28: 青森県 | K28: 奈良県 | L28: 1198239
I29: 貨物自動車 | J29: 青森県 | K29: 和歌山県 | L29: 1291911
I30: 貨物自動車 | J30: 青森県 | K30: 鳥取県 | L30: 1387510
I31: 貨物自動車 | J31: 青森県 | K31: 島根県 | L31: 1478664
I32: 貨物自動車 | J32: 青森県 | K32: 岡山県 | L32: 1375328
I33: 貨物自動車 | J33: 青森県 | K33: 広島県 | L33: 1520948
I34: 貨物自動車 | J34: 青森県 | K34: 山口県 | L34: 1649707
I35: 貨物自動車 | J35: 青森県 | K35: 徳島県 | L35: 1348836
I36: 貨物自動車 | J36: 青森県 | K36: 香川県 | L36: 1395994
I37: 貨物自動車 | J37: 青森県 | K37: 愛媛県 | L37: 1556970
I38: 貨物自動車 | J38: 青森県 | K38: 高知県 | L38: 1528271
I39: 貨物自動車 | J39: 青森県 | K39: 福岡県 | L39: 1804874
I40: 貨物自動車 | J40: 青森県 | K40: 佐賀県 | L40: 1848326
I41: 貨物自動車 | J41: 青森県 | K41: 長崎県 | L41: 1943305
I42: 貨物自動車 | J42: 青森県 | K42: 熊本県 | L42: 1904272
I43: 貨物自動車 | J43: 青森県 | K43: 大分県 | L43: 1947478
I44: 貨物自動車 | J44: 青森県 | K44: 宮崎県 | L44: 2084963
I45: 貨物自動車 | J45: 青森県 | K45: 鹿児島県 | L45: 2072194
I46: 貨物自動車 | J46: 岩手県 | K46: 青森県 | L46: 184638
I47: 貨物自動車 | J47: 岩手県 | K47: 宮城県 | L47: 197878
I48: 貨物自動車 | J48: 岩手県 | K48: 秋田県 | L48: 122812
I49: 貨物自動車 | J49: 岩手県 | K49: 山形県 | L49: 237799
I50: 貨物自動車 | J50: 岩手県 | K50: 福島県 | L50: 266047
I51: 貨物自動車 | J51: 岩手県 | K51: 茨城県 | L51: 481611
I52: 貨物自動車 | J52: 岩手県 | K52: 栃木県 | L52: 448301
I53: 貨物自動車 | J53: 岩手県 | K53: 群馬県 | L53: 628772
I54: 貨物自動車 | J54: 岩手県 | K54: 埼玉県 | L54: 530818
I55: 貨物自動車 | J55: 岩手県 | K55: 千葉県 | L55: 588527
I56: 貨物自動車 | J56: 岩手県 | K56: 東京都 | L56: 552471
I57: 貨物自動車 | J57: 岩手県 | K57: 神奈川県 | L57: 597450
I58: 貨物自動車 | J58: 岩手県 | K58: 新潟県 | L58: 439660
I59: 貨物自動車 | J59: 岩手県 | K59: 富山県 | L59: 683369
I60: 貨物自動車 | J60: 岩手県 | K60: 石川県 | L60: 745231
I61: 貨物自動車 | J61: 岩手県 | K61: 福井県 | L61: 821211
I62: 貨物自動車 | J62: 岩手県 | K62: 山梨県 | L62: 676824
I63: 貨物自動車 | J63: 岩手県 | K63: 長野県 | L63: 634848
I64: 貨物自動車 | J64: 岩手県 | K64: 岐阜県 | L64: 978693
I65: 貨物自動車 | J65: 岩手県 | K65: 静岡県 | L65: 725025
I66: 貨物自動車 | J66: 岩手県 | K66: 愛知県 | L66: 909513
I67: 貨物自動車 | J67: 岩手県 | K67: 三重県 | L67: 990310
I68: 貨物自動車 | J68: 岩手県 | K68: 滋賀県 | L68: 983754
I69: 貨物自動車 | J69: 岩手県 | K69: 京都府 | L69: 1004433
I70: 貨物自動車 | J70: 岩手県 | K70: 大阪府 | L70: 1053147
I71: 貨物自動車 | J71: 岩手県 | K71: 兵庫県 | L71: 1062219
I72: 貨物自動車 | J72: 岩手県 | K72: 奈良県 | L72: 1023601
I73: 貨物自動車 | J73: 岩手県 | K73: 和歌山県 | L73: 1119224
I74: 貨物自動車 | J74: 岩手県 | K74: 鳥取県 | L74: 1212014
I75: 貨物自動車 | J75: 岩手県 | K75: 島根県 | L75: 1303110
I76: 貨物自動車 | J76: 岩手県 | K76: 岡山県 | L76: 1199987
I77: 貨物自動車 | J77: 岩手県 | K77: 広島県 | L77: 1349428
I78: 貨物自動車 | J78: 岩手県 | K78: 山口県 | L78: 1487116
I79: 貨物自動車 | J79: 岩手県 | K79: 徳島県 | L79: 1173282
I80: 貨物自動車 | J80: 岩手県 | K80: 香川県 | L80: 1221645
I81: 貨物自動車 | J81: 岩手県 | K81: 愛媛県 | L81: 1381416
I82: 貨物自動車 | J82: 岩手県 | K82: 高知県 | L82: 1353495
I83: 貨物自動車 | J83: 岩手県 | K83: 福岡県 | L83: 1623762
I84: 貨物自動車 | J84: 岩手県 | K84: 佐賀県 | L84: 1673948
I85: 貨物自動車 | J85: 岩手県 | K85: 長崎県 | L85: 1767900
I86: 貨物自動車 | J86: 岩手県 | K86: 熊本県 | L86: 1730176
I87: 貨物自動車 | J87: 岩手県 | K87: 大分県 | L87: 1773390
I88: 貨物自動車 | J88: 岩手県 | K88: 宮崎県 | L88: 1910626
I89: 貨物自動車 | J89: 岩手県 | K89: 鹿児島県 | L89: 1897078
I90: 貨物自動車 | J90: 宮城県 | K90: 青森県 | L90: 353104
I91: 貨物自動車 | J91: 宮城県 | K91: 岩手県 | L91: 185670
I92: 貨物自動車 | J92: 宮城県 | K92: 秋田県 | L92: 246934
I93: 貨物自動車 | J93: 宮城県 | K93: 山形県 | L93: 63602
I94: 貨物自動車 | J94: 宮城県 | K94: 福島県 | L94: 84969
I95: 貨物自動車 | J95: 宮城県 | K95: 茨城県 | L95: 293921
I96: 貨物自動車 | J96: 宮城県 | K96: 栃木県 | L96: 249999
I97: 貨物自動車 | J97: 宮城県 | K97: 群馬県 | L97: 346989
I98: 貨物自動車 | J98: 宮城県 | K98: 埼玉県 | L98: 350853
I99: 貨物自動車 | J99: 宮城県 | K99: 千葉県 | L99: 407449
I100: 貨物自動車 | J100: 宮城県 | K100: 東京都 | L100: 372506
I101: 貨物自動車 | J101: 宮城県 | K101: 神奈川県 | L101: 417485
I102: 貨物自動車 | J102: 宮城県 | K102: 新潟県 | L102: 265463
I103: 貨物自動車 | J103: 宮城県 | K103: 富山県 | L103: 509172
I104: 貨物自動車 | J104: 宮城県 | K104: 石川県 | L104: 571034
I105: 貨物自動車 | J105: 宮城県 | K105: 福井県 | L105: 647014
I106: 貨物自動車 | J106: 宮城県 | K106: 山梨県 | L106: 502627
I107: 貨物自動車 | J107: 宮城県 | K107: 長野県 | L107: 463664
I108: 貨物自動車 | J108: 宮城県 | K108: 岐阜県 | L108: 806308
I109: 貨物自動車 | J109: 宮城県 | K109: 静岡県 | L109: 550828
I110: 貨物自動車 | J110: 宮城県 | K110: 愛知県 | L110: 737637
I111: 貨物自動車 | J111: 宮城県 | K111: 三重県 | L111: 816113
I112: 貨物自動車 | J112: 宮城県 | K112: 滋賀県 | L112: 809557
I113: 貨物自動車 | J113: 宮城県 | K113: 京都府 | L113: 830236
I114: 貨物自動車 | J114: 宮城県 | K114: 大阪府 | L114: 872851
I115: 貨物自動車 | J115: 宮城県 | K115: 兵庫県 | L115: 888022
I116: 貨物自動車 | J116: 宮城県 | K116: 奈良県 | L116: 889828
I117: 貨物自動車 | J117: 宮城県 | K117: 和歌山県 | L117: 945027
I118: 貨物自動車 | J118: 宮城県 | K118: 鳥取県 | L118: 1037817
I119: 貨物自動車 | J119: 宮城県 | K119: 島根県 | L119: 1128913
I120: 貨物自動車 | J120: 宮城県 | K120: 岡山県 | L120: 1025790
I121: 貨物自動車 | J121: 宮城県 | K121: 広島県 | L121: 1175231
I122: 貨物自動車 | J122: 宮城県 | K122: 山口県 | L122: 1323810
I123: 貨物自動車 | J123: 宮城県 | K123: 徳島県 | L123: 999085
I124: 貨物自動車 | J124: 宮城県 | K124: 香川県 | L124: 1047448
I125: 貨物自動車 | J125: 宮城県 | K125: 愛媛県 | L125: 1207219
I126: 貨物自動車 | J126: 宮城県 | K126: 高知県 | L126: 1179298
I127: 貨物自動車 | J127: 宮城県 | K127: 福岡県 | L127: 1449565
I128: 貨物自動車 | J128: 宮城県 | K128: 佐賀県 | L128: 1499751
I129: 貨物自動車 | J129: 宮城県 | K129: 長崎県 | L129: 1593703
I130: 貨物自動車 | J130: 宮城県 | K130: 熊本県 | L130: 1555539
I131: 貨物自動車 | J131: 宮城県 | K131: 大分県 | L131: 1607597
I132: 貨物自動車 | J132: 宮城県 | K132: 宮崎県 | L132: 1735311
I133: 貨物自動車 | J133: 宮城県 | K133: 鹿児島県 | L133: 1722542
I134: 貨物自動車 | J134: 秋田県 | K134: 青森県 | L134: 195560
I135: 貨物自動車 | J135: 秋田県 | K135: 岩手県 | L135: 120563
I136: 貨物自動車 | J136: 秋田県 | K136: 宮城県 | L136: 245945
I137: 貨物自動車 | J137: 秋田県 | K137: 山形県 | L137: 304606
I138: 貨物自動車 | J138: 秋田県 | K138: 福島県 | L138: 325973
I139: 貨物自動車 | J139: 秋田県 | K139: 茨城県 | L139: 534925
I140: 貨物自動車 | J140: 秋田県 | K140: 栃木県 | L140: 491003
I141: 貨物自動車 | J141: 秋田県 | K141: 群馬県 | L141: 586076
I142: 貨物自動車 | J142: 秋田県 | K142: 埼玉県 | L142: 599081
I143: 貨物自動車 | J143: 秋田県 | K143: 千葉県 | L143: 660306
I144: 貨物自動車 | J144: 秋田県 | K144: 東京都 | L144: 628635
I145: 貨物自動車 | J145: 秋田県 | K145: 神奈川県 | L145: 669022
I146: 貨物自動車 | J146: 秋田県 | K146: 新潟県 | L146: 506467
I147: 貨物自動車 | J147: 秋田県 | K147: 富山県 | L147: 750176
I148: 貨物自動車 | J148: 秋田県 | K148: 石川県 | L148: 812038
I149: 貨物自動車 | J149: 秋田県 | K149: 福井県 | L149: 888018
I150: 貨物自動車 | J150: 秋田県 | K150: 山梨県 | L150: 743506
I151: 貨物自動車 | J151: 秋田県 | K151: 長野県 | L151: 689615
I152: 貨物自動車 | J152: 秋田県 | K152: 岐阜県 | L152: 1026806
I153: 貨物自動車 | J153: 秋田県 | K153: 静岡県 | L153: 791495
I154: 貨物自動車 | J154: 秋田県 | K154: 愛知県 | L154: 974895
I155: 貨物自動車 | J155: 秋田県 | K155: 三重県 | L155: 1087340
I156: 貨物自動車 | J156: 秋田県 | K156: 滋賀県 | L156: 1050561
I157: 貨物自動車 | J157: 秋田県 | K157: 京都府 | L157: 1063685
I158: 貨物自動車 | J158: 秋田県 | K158: 大阪府 | L158: 1111096
I159: 貨物自動車 | J159: 秋田県 | K159: 兵庫県 | L159: 1129051
I160: 貨物自動車 | J160: 秋田県 | K160: 奈良県 | L160: 1089492
I161: 貨物自動車 | J161: 秋田県 | K161: 和歌山県 | L161: 1186031
I162: 貨物自動車 | J162: 秋田県 | K162: 鳥取県 | L162: 1278763
I163: 貨物自動車 | J163: 秋田県 | K163: 島根県 | L163: 1369917
I164: 貨物自動車 | J164: 秋田県 | K164: 岡山県 | L164: 1267757
I165: 貨物自動車 | J165: 秋田県 | K165: 広島県 | L165: 1412201
I166: 貨物自動車 | J166: 秋田県 | K166: 山口県 | L166: 1540960
I167: 貨物自動車 | J167: 秋田県 | K167: 徳島県 | L167: 1240089
I168: 貨物自動車 | J168: 秋田県 | K168: 香川県 | L168: 1288423
I169: 貨物自動車 | J169: 秋田県 | K169: 愛媛県 | L169: 1448223
I170: 貨物自動車 | J170: 秋田県 | K170: 高知県 | L170: 1419524
I171: 貨物自動車 | J171: 秋田県 | K171: 福岡県 | L171: 1697303
I172: 貨物自動車 | J172: 秋田県 | K172: 佐賀県 | L172: 1740867
I173: 貨物自動車 | J173: 秋田県 | K173: 長崎県 | L173: 1837263
I174: 貨物自動車 | J174: 秋田県 | K174: 熊本県 | L174: 1795207
I175: 貨物自動車 | J175: 秋田県 | K175: 大分県 | L175: 1840896
I176: 貨物自動車 | J176: 秋田県 | K176: 宮崎県 | L176: 1981086
I177: 貨物自動車 | J177: 秋田県 | K177: 鹿児島県 | L177: 1968317
I178: 貨物自動車 | J178: 山形県 | K178: 青森県 | L178: 413069
I179: 貨物自動車 | J179: 山形県 | K179: 岩手県 | L179: 241348
I180: 貨物自動車 | J180: 山形県 | K180: 宮城県 | L180: 63819
I181: 貨物自動車 | J181: 山形県 | K181: 秋田県 | L181: 306618
I182: 貨物自動車 | J182: 山形県 | K182: 福島県 | L182: 96227
I183: 貨物自動車 | J183: 山形県 | K183: 茨城県 | L183: 305179
I184: 貨物自動車 | J184: 山形県 | K184: 栃木県 | L184: 261257
I185: 貨物自動車 | J185: 山形県 | K185: 群馬県 | L185: 358247
I186: 貨物自動車 | J186: 山形県 | K186: 埼玉県 | L186: 362111
I187: 貨物自動車 | J187: 山形県 | K187: 千葉県 | L187: 418707
I188: 貨物自動車 | J188: 山形県 | K188: 東京都 | L188: 383764
I189: 貨物自動車 | J189: 山形県 | K189: 神奈川県 | L189: 428743
I190: 貨物自動車 | J190: 山形県 | K190: 新潟県 | L190: 166597
I191: 貨物自動車 | J191: 山形県 | K191: 富山県 | L191: 520430
I192: 貨物自動車 | J192: 山形県 | K192: 石川県 | L192: 582292
I193: 貨物自動車 | J193: 山形県 | K193: 福井県 | L193: 658272
I194: 貨物自動車 | J194: 山形県 | K194: 山梨県 | L194: 513760
I195: 貨物自動車 | J195: 山形県 | K195: 長野県 | L195: 474922
I196: 貨物自動車 | J196: 山形県 | K196: 岐阜県 | L196: 815754
I197: 貨物自動車 | J197: 山形県 | K197: 静岡県 | L197: 562086
I198: 貨物自動車 | J198: 山形県 | K198: 愛知県 | L198: 745149
I199: 貨物自動車 | J199: 山形県 | K199: 三重県 | L199: 827371
I200: 貨物自動車 | J200: 山形県 | K200: 滋賀県 | L200: 820815
... 5924 more rows

Sheet SHISAN_TDFK_NAME (hidden)
A2: 1 | B2: 北海道 | C2: 8 | D2: 貨物自動車
A3: 2 | B3: 青森県 | C3: 9 | D3: 鉄道
A4: 3 | B4: 岩手県 | C4: 10 | D4: 船舶
A5: 4 | B5: 宮城県 | C5: 11 | D5: 航空機
A6: 5 | B6: 秋田県
A7: 6 | B7: 山形県
A8: 7 | B8: 福島県
A9: 8 | B9: 茨城県
A10: 9 | B10: 栃木県
A11: 10 | B11: 群馬県
A12: 11 | B12: 埼玉県
A13: 12 | B13: 千葉県
A14: 13 | B14: 東京都
A15: 14 | B15: 神奈川県
A16: 15 | B16: 新潟県
A17: 16 | B17: 富山県
A18: 17 | B18: 石川県
A19: 18 | B19: 福井県
A20: 19 | B20: 山梨県
A21: 20 | B21: 長野県
A22: 21 | B22: 岐阜県
A23: 22 | B23: 静岡県
A24: 23 | B24: 愛知県
A25: 24 | B25: 三重県
A26: 25 | B26: 滋賀県
A27: 26 | B27: 京都府
A28: 27 | B28: 大阪府
A29: 28 | B29: 兵庫県
A30: 29 | B30: 奈良県
A31: 30 | B31: 和歌山県
A32: 31 | B32: 鳥取県
A33: 32 | B33: 島根県
A34: 33 | B34: 岡山県
A35: 34 | B35: 広島県
A36: 35 | B36: 山口県
A37: 36 | B37: 徳島県
A38: 37 | B38: 香川県
A39: 38 | B39: 愛媛県
A40: 39 | B40: 高知県
A41: 40 | B41: 福岡県
A42: 41 | B42: 佐賀県
A43: 42 | B43: 長崎県
A44: 43 | B44: 熊本県
A45: 44 | B45: 大分県
A46: 45 | B46: 宮崎県
A47: 46 | B47: 鹿児島県
A48: 47 | B48: 沖縄県
